fUSD/lending_fUSD_20240409
["ID","MTS","AMOUNT","RATE_DAILY","PERIOD"]
[321944787,1712645446881,-500.0,0.00020821,2]
[321944788,1712645446890,-500.0,0.00020821,2]
[321944789,1712645446899,-500.0,0.00020821,2]
[321944790,1712645446908,-1038.5,0.00020821,2]
[321944791,1712645446918,-264.63598757,0.00020821,2]
[321944792,1712645446926,-1348.41,0.00020821,2]
[321944793,1712645446936,-500.0,0.00020821,2]
[321944794,1712645446945,-500.0,0.00020821,2]
[321944795,1712645446954,-1026.66,0.00020821,2]
[321944796,1712645446964,-500.0,0.00020821,2]
[321944797,1712645446973,-548.56680995,0.00020821,2]
[321944798,1712645446982,-1394.3,0.00020821,2]
[321944799,1712645446992,-500.0,0.00020821,2]
[321944800,1712645447001,-500.0,0.00020821,2]
[321944801,1712645447010,-500.0,0.00020821,2]
[321944802,1712645447019,-890.06,0.00020821,2]
[321944803,1712645447029,-3657.21,0.00020821,2]
[321944804,1712645447038,-712.89,0.00020821,2]
[321944805,1712645447047,-500.0,0.00020821,2]
[321944806,1712645447057,-1325.25,0.00020821,2]
[321944807,1712645447066,-164.172226,0.00020821,2]
[321944808,1712645447076,-906.17,0.00020821,2]
[321944809,1712645447085,-500.0,0.00020821,2]
[321944810,1712645447095,-500.0,0.00020821,2]
[321944811,1712645447104,-522.23555095,0.00020821,2]
[321944812,1712645447113,-2212.91,0.00020821,2]
[321944813,1712645447123,-1438.4,0.00020821,2]
[321944814,1712645447132,-837.85,0.00020821,2]
[321944815,1712645447141,-584.42,0.00020821,2]
[321944816,1712645447151,-500.0,0.00020821,2]
[321944817,1712645447160,-1693.17,0.00020821,2]
[321944818,1712645447169,-500.0,0.00020821,2]
[321944819,1712645447179,-720.02,0.00020821,2]
[321944820,1712645447188,-917.97,0.00020821,2]
[321944821,1712645447197,-2668.11,0.00020821,2]
[321944822,1712645447206,-500.0,0.00020821,2]
[321944823,1712645447215,-500.0,0.00020821,2]
[321944824,1712645447224,-1995.19,0.00020821,2]
[321944825,1712645447234,-503.45683852,0.00020821,2]
[321944826,1712645447243,-500.0,0.00020821,2]
[321944827,1712645447253,-500.0,0.00020821,2]
[321944828,1712645447262,-2003.05908814,0.00020821,2]
[321944829,1712645447271,-2680.69,0.00020821,2]
[321944830,1712645447280,-956.79,0.00020821,2]
[321944831,1712645447290,-526.45,0.00020821,2]
[321944832,1712645447299,-1061.63,0.00020821,2]
[321944833,1712645447308,-599.78,0.00020821,2]
[321944834,1712645447317,-500.0,0.00020821,2]
[321944835,1712645447327,-1429.39,0.00020821,2]
[321944836,1712645447336,-500.0,0.00020821,2]
[321944837,1712645447347,-500.0,0.00020821,2]
[321944838,1712645447356,-1682.89,0.00020821,2]
[321944839,1712645447365,-3155.71,0.00020821,2]
[321944840,1712645447374,-500.0,0.00020821,2]
[321944841,1712645447386,-7866.78,0.00020821,2]
[321944842,1712645447396,-527.85054017,0.00020821,2]
[321944843,1712645447406,-500.0,0.00020821,2]
[321944844,1712645447416,-500.0,0.00020821,2]
[321944845,1712645447427,-500.0,0.00020821,2]
[321944846,1712645447437,-500.0,0.00020821,2]
[321944847,1712645447447,-2168.68,0.00020821,2]
[321944848,1712645447458,-505.43401499,0.00020821,2]
[321944849,1712645447467,-1785.98,0.00020821,2]
[321944850,1712645447480,-500.0,0.00020821,2]
[321944851,1712645447489,-500.0,0.00020821,2]
[321944852,1712645447498,-49866.72077632,0.00020821,2]
[321944853,1712645448550,-3647.00000005,0.00020821,2]
[321944854,1712645448566,-663.68412203,0.00020821,2]
[321944855,1712645448792,-5840.9151016,0.00020821,2]
[321944856,1712645448802,-500.0,0.00020821,2]
[321944857,1712645448813,-500.0,0.00020821,2]
[321944858,1712645448824,-11608.39,0.00020821,2]
[321944859,1712645448833,-500.0,0.00020821,2]
[321944860,1712645448843,-506.03176628,0.00020821,2]
[321944861,1712645448857,-7130.65,0.00020821,2]
[321944862,1712645448866,-500.0,0.00020821,2]
[321944863,1712645448875,-2860.59,0.00020821,2]
[321944864,1712645448884,-500.0,0.00020821,2]
[321944865,1712645448893,-18882.39,0.00020821,2]
[321944866,1712645448902,-536.64,0.00020821,2]
[321944867,1712645448911,-500.0,0.00020821,2]
[321944868,1712645448920,-500.0,0.00020821,2]
[321944869,1712645448929,-500.0,0.00020821,2]
[321944870,1712645448938,-2124.47,0.00020821,2]
[321944871,1712645448949,-500.0,0.00020821,2]
[321944872,1712645448958,-522.25,0.00020821,2]
[321944873,1712645448968,-3475.45,0.00020821,2]
[321944874,1712645448977,-500.0,0.00020821,2]
[321944875,1712645448986,-3005.13,0.00020821,2]
[321944876,1712645448996,-500.0,0.00020821,2]
[321944877,1712645449006,-11301.58,0.00020821,2]
[321944878,1712645449015,-500.0,0.00020821,2]
[321944879,1712645449023,-500.0,0.00020821,2]
[321944880,1712645449033,-1409.59,0.00020821,2]
[321944881,1712645449042,-500.0,0.00020821,2]
[321944882,1712645449051,-519.6,0.00020821,2]
[321944883,1712645449060,-516.83039828,0.00020821,2]
[321944884,1712645449070,-2594.59,0.00020821,2]
[321944885,1712645449079,-500.0,0.00020821,2]
[321944886,1712645449088,-3358.31,0.00020821,2]
[321944887,1712645449101,-2398.62,0.00020821,2]
[321944888,1712645449110,-500.0,0.00020821,2]
[321944889,1712645449119,-500.0,0.00020821,2]
[321944890,1712645449128,-4895.62,0.00020821,2]
[321944891,1712645449138,-500.0,0.00020821,2]
[321944892,1712645449147,-500.0,0.00020821,2]
[321944893,1712645449156,-500.0,0.00020821,2]
[321944894,1712645449166,-500.0,0.00020821,2]
[321944895,1712645449175,-7744.95,0.00020821,2]
[321944896,1712645449185,-2449.28,0.00020821,2]
[321944897,1712645449194,-500.0,0.00020821,2]
[321944898,1712645449203,-998.9,0.00020821,2]
[321944899,1712645449212,-895.42,0.00020821,2]
[321944900,1712645449221,-699.27,0.00020821,2]
[321944901,1712645449230,-500.0,0.00020821,2]
[321944902,1712645449239,-500.0,0.00020821,2]
[321944903,1712645449249,-7057.2,0.00020821,2]
[321944904,1712645449258,-3236.92,0.00020821,2]
[321944905,1712645449267,-1461.6,0.00020821,2]
[321944906,1712645449276,-3577.8,0.00020821,2]
[321944907,1712645449285,-3835.82,0.00020821,2]
[321944908,1712645449293,-500.0,0.00020821,2]
[321944909,1712645449304,-500.0,0.00020821,2]
[321944910,1712645449313,-500.0,0.00020821,2]
[321944911,1712645449322,-500.0,0.00020821,2]
[321944912,1712645449331,-500.0,0.00020821,2]
[321944913,1712645449339,-4759.66,0.00020821,2]
[321944914,1712645449351,-2264.47,0.00020821,2]
[321944915,1712645449360,-500.0,0.00020821,2]
[321944916,1712645449369,-784.05,0.00020821,2]
[321944917,1712645449378,-807.6,0.00020821,2]
[321944918,1712645449387,-500.0,0.00020821,2]
[321944919,1712645449396,-500.0,0.00020821,2]
[321944920,1712645449405,-565.71,0.00020821,2]
[321944921,1712645449413,-7966.98,0.00020821,2]
[321944922,1712645449422,-3686.31,0.00020821,2]
[321944923,1712645449431,-500.0,0.00020821,2]
[321944924,1712645449440,-7733.27,0.00020821,2]
[321944925,1712645449449,-500.0,0.00020821,2]
[321944926,1712645449458,-520.05,0.00020821,2]
[321944927,1712645449467,-500.0,0.00020821,2]
[321944928,1712645449479,-3781.64,0.00020821,2]
[321944929,1712645449488,-500.0,0.00020821,2]
[321944930,1712645449510,-500.0,0.00020821,2]
[321944931,1712645449519,-2627.15,0.00020821,2]
[321944932,1712645449530,-1392.72,0.00020821,2]
[321944933,1712645449539,-2964.6,0.00020821,2]
[321944934,1712645449550,-3823.75,0.00020821,2]
[321944935,1712645449560,-500.0,0.00020821,2]
[321944936,1712645449570,-500.0,0.00020821,2]
[321944937,1712645449579,-2489.53,0.00020821,2]
[321944938,1712645449588,-3655.64,0.00020821,2]
[321944939,1712645449600,-500.0,0.00020821,2]
[321944940,1712645449609,-500.0,0.00020821,2]
[321944941,1712645449620,-1270.99,0.00020821,2]
[321944942,1712645449630,-500.0,0.00020821,2]
[321944943,1712645449641,-24985.61,0.00020821,2]
[321944944,1712645449651,-1609.26,0.00020821,2]
[321944945,1712645449660,-500.0,0.00020821,2]
[321944946,1712645449670,-500.0,0.00020821,2]
[321944947,1712645449680,-500.0,0.00020821,2]
[321944948,1712645449690,-532.65,0.00020821,2]
[321944949,1712645449700,-500.0,0.00020821,2]
[321944950,1712645449709,-500.0,0.00020821,2]
[321944951,1712645449718,-1256.16,0.00020821,2]
[321944952,1712645449728,-5542.57,0.00020821,2]
[321944953,1712645449738,-528.88180895,0.00020821,2]
[321944954,1712645449747,-2235.22,0.00020821,2]
[321944955,1712645449757,-999.51,0.00020821,2]
[321944956,1712645449767,-790.86,0.00020821,2]
[321944957,1712645449776,-4331.45,0.00020821,2]
[321944958,1712645449786,-538.29609663,0.00020821,2]
[321944959,1712645449795,-994.75,0.00020821,2]
[321944960,1712645449804,-3827.48,0.00020821,2]
[321944961,1712645449814,-500.0,0.00020821,2]
[321944962,1712645449824,-4404.11,0.00020821,2]
[321944963,1712645449834,-500.0,0.00020821,2]
[321944964,1712645449843,-504.09437094,0.00020821,2]
[321944965,1712645449856,-500.0,0.00020821,2]
[321944966,1712645449865,-2894.16,0.00020821,2]
[321944967,1712645449875,-500.0,0.00020821,2]
[321944968,1712645449885,-500.0,0.00020821,2]
[321944969,1712645449894,-500.0,0.00020821,2]
[321944970,1712645449904,-500.0,0.00020821,2]
[321944971,1712645449914,-4404.11,0.00020821,2]
[321944972,1712645449923,-522.02889052,0.00020821,2]
[321944973,1712645449932,-4404.11,0.00020821,2]
[321944974,1712645449942,-4404.11,0.00020821,2]
[321944975,1712645449952,-4404.11,0.00020821,2]
[321944976,1712645449961,-1297.47,0.00020821,2]
[321944977,1712645449971,-500.0,0.00020821,2]
[321944978,1712645449980,-500.0,0.00020821,2]
[321944979,1712645449989,-4404.11,0.00020821,2]
[321944980,1712645449998,-4404.11,0.00020821,2]
[321944981,1712645450008,-509.64501588,0.00020821,2]
[321944982,1712645450018,-516.21799279,0.00020821,2]
[321944983,1712645450027,-523.65,0.00020821,2]
[321944984,1712645450038,-1840.03,0.00020821,2]
[321944985,1712645450047,-961.66,0.00020821,2]
[321944986,1712645450057,-398.54258094,0.00020821,2]
[321944987,1712645450067,-1600.58,0.00020821,2]
[321944988,1712645450077,-1457.5,0.00020821,2]
[321944989,1712645450087,-500.0,0.00020821,2]
[321944990,1712645450097,-510.82558716,0.00020821,2]
[321944991,1712645450107,-4302.04,0.00020821,2]
[321944992,1712645450117,-6168.77,0.00020821,2]
[321944993,1712645450126,-500.0,0.00020821,2]
[321944994,1712645450136,-500.0,0.00020821,2]
[321944995,1712645450146,-500.0,0.00020821,2]
[321944996,1712645450156,-550.28,0.00020821,2]
[321944997,1712645450165,-500.0,0.00020821,2]
[321944998,1712645450175,-715.6,0.00020821,2]
[321944999,1712645450185,-500.0,0.00020821,2]
[321945000,1712645450194,-658.88,0.00020821,2]
[321945001,1712645450204,-1034.27,0.00020821,2]
[321945002,1712645450213,-163.12571298,0.00020821,2]
[321945003,1712645450223,-11433.16,0.00020821,2]
[321945004,1712645450233,-500.0,0.00020821,2]
[321945005,1712645450242,-59407.69,0.00020821,2]
[321945006,1712645450252,-1394.11,0.00020821,2]
[321945007,1712645450262,-500.0,0.00020821,2]
[321945008,1712645450271,-5152.39,0.00020821,2]
[321945009,1712645450282,-500.0,0.00020821,2]
[321945010,1712645450291,-500.0,0.00020821,2]
[321945011,1712645450300,-500.0,0.00020821,2]
[321945012,1712645450310,-5589.05,0.00020821,2]
[321945013,1712645450319,-899.06,0.00020821,2]
[321945014,1712645450329,-764.54,0.00020821,2]
[321945015,1712645450338,-500.0,0.00020821,2]
[321945016,1712645450349,-500.0,0.00020821,2]
[321945017,1712645450358,-583.86,0.00020821,2]
[321945018,1712645450368,-636.21,0.00020821,2]
[321945019,1712645450377,-10075.97,0.00020821,2]
[321945020,1712645450387,-500.0,0.00020821,2]
[321945021,1712645450396,-503.12937236,0.00020821,2]
[321945022,1712645450406,-500.0,0.00020821,2]
[321945023,1712645450416,-745.56,0.00020821,2]
[321945024,1712645450425,-9911.21,0.00020821,2]
[321945025,1712645450435,-10727.44,0.00020821,2]
[321945026,1712645450444,-500.0,0.00020821,2]
[321945027,1712645450453,-710.13,0.00020821,2]
[321945028,1712645450463,-500.0,0.00020821,2]
[321945029,1712645450476,-4671.83,0.00020821,2]
[321945030,1712645450485,-4620.67,0.00020821,2]
[321945031,1712645450495,-500.0,0.00020821,2]
[321945032,1712645450504,-500.0,0.00020821,2]
[321945033,1712645450514,-1913.65,0.00020821,2]
[321945034,1712645450524,-529.1567797,0.00020821,2]
[321945035,1712645450534,-500.0,0.00020821,2]
[321945036,1712645450544,-500.0,0.00020821,2]
[321945037,1712645450555,-500.0,0.00020821,2]
[321945038,1712645450565,-566.07,0.00020821,2]
[321945039,1712645450574,-500.0,0.00020821,2]
[321945040,1712645450584,-500.0,0.00020821,2]
[321945041,1712645450593,-500.0,0.00020821,2]
[321945042,1712645450604,-48228.91,0.00020821,2]
[321945043,1712645450614,-3316.43852497,0.00020821,2]
[321945044,1712645450632,-1284.51147503,0.00020821,2]
[321945045,1712645450641,-300.0,0.00020821,2]
[321945046,1712645450651,-4077.72,0.00020821,2]
[321945047,1712645450660,-500.0,0.00020821,2]
[321945048,1712645450669,-500.0,0.00020821,2]
[321945049,1712645450678,-3416.84,0.00020821,2]
[321945050,1712645450688,-500.0,0.00020821,2]
[321945051,1712645450697,-518.33,0.00020821,2]
[321945052,1712645450706,-1122.02,0.00020821,2]
[321945053,1712645450716,-822.68,0.00020821,2]
[321945054,1712645450726,-1037.44,0.00020821,2]
[321945055,1712645450735,-6217.74,0.00020821,2]
[321945056,1712645450744,-853.73,0.00020821,2]
[321945057,1712645450754,-500.0,0.00020821,2]
[321945058,1712645450763,-500.0,0.00020821,2]
[321945059,1712645450772,-8138.73,0.00020821,2]
[321945060,1712645450781,-743.0,0.00020821,2]
[321945061,1712645450791,-792.75,0.00020821,2]
[321945062,1712645450801,-8213.18,0.00020821,2]
[321945063,1712645450810,-500.0,0.00020821,2]
[321945064,1712645450819,-1947.44,0.00020821,2]
[321945065,1712645450828,-500.0,0.00020821,2]
[321945066,1712645450837,-918.73,0.00020821,2]
[321945067,1712645450848,-505.12540249,0.00020821,2]
[321945068,1712645450857,-500.0,0.00020821,2]
[321945069,1712645450867,-1547.47,0.00020821,2]
[321945070,1712645450876,-20315.21,0.00020821,2]
[321945071,1712645450886,-6204.78,0.00020821,2]
[321945072,1712645450896,-500.0,0.00020821,2]
[321945073,1712645450906,-10348.74965209,0.00020821,2]
[321945074,1712645450943,-301.605,0.00020821,2]
[321945075,1712645450955,-540.76870896,0.00020821,2]
[321945076,1712645450970,-901.29663895,0.00020821,2]
[321945077,1712645450979,-500.0,0.00020821,2]
[321945078,1712645450988,-1564.89368959,0.00020821,2]
[321945079,1712645451012,-865.22168712,0.00020821,2]
[321945080,1712645451045,-8179.07462329,0.00020821,2]
[321945081,1712645451054,-1210.05,0.00020821,2]
[321945082,1712645451064,-500.0,0.00020821,2]
[321945083,1712645451074,-477.69622878,0.00020821,2]
[321945084,1712645451887,-75.13478371,0.00020821,2]
[321945085,1712645451897,-869.16,0.00020821,2]
[321945086,1712645451906,-500.0,0.00020821,2]
[321945087,1712645451916,-4304.26,0.00020821,2]
[321945088,1712645451925,-500.0,0.00020821,2]
[321945089,1712645451935,-500.0,0.00020821,2]
[321945090,1712645451944,-500.0,0.00020821,2]
[321945091,1712645451953,-611.1,0.00020821,2]
[321945092,1712645451962,-500.0,0.00020821,2]
[321945093,1712645451973,-501.96,0.00020821,2]
[321945094,1712645451982,-1993.44,0.00020821,2]
[321945095,1712645451991,-816.55175,0.00020821,2]
[321945096,1712645452001,-539.54780155,0.00020821,2]
[321945097,1712645452010,-2611.56,0.00020821,2]
[321945098,1712645452020,-1115.39,0.00020821,2]
[321945099,1712645452029,-734.79,0.00020821,2]
[321945100,1712645452039,-500.0,0.00020821,2]
[321945101,1712645452048,-427.10566507,0.00020821,2]
[321945102,1712645452066,-3327.03433493,0.00020821,2]
[321945103,1712645452075,-841.91,0.00020821,2]
[321945104,1712645452084,-504.13,0.00020821,2]
[321945105,1712645452094,-500.0,0.00020821,2]
[321945106,1712645452105,-695.79,0.00020821,2]
[321945107,1712645452114,-4100.75099732,0.00020821,2]
[321945108,1712645452349,-1546.81900268,0.00020821,2]
[321945109,1712645452358,-4387.02649551,0.00020821,2]
[321945110,1712645452370,-580.54350449,0.00020821,2]
[321945111,1712645452380,-814.92446846,0.00020821,2]
[321945112,1712645452392,-3046.3587192,0.00020821,2]
[321945113,1712645452458,-0.72631176,0.00020821,2]
[321945114,1712645452482,-4123.85050058,0.00020821,2]
[321945115,1712645452491,-500.0,0.00020821,2]
[321945116,1712645452500,-397.33585042,0.00020821,2]
[321945117,1712645452512,-1170.44,0.00020821,2]
[321945118,1712645452521,-500.0,0.00020821,2]
[321945119,1712645452533,-2407.19,0.00020821,2]
[321945120,1712645452542,-1539.48,0.00020821,2]
[321945121,1712645452552,-500.0,0.00020821,2]
[321945122,1712645452562,-500.0,0.00020821,2]
[321945123,1712645452571,-3598.6,0.00020821,2]
[321945124,1712645452580,-500.0,0.00020821,2]
[321945125,1712645452590,-7663.33,0.00020821,2]
[321945126,1712645452601,-500.0,0.00020821,2]
[321945127,1712645452611,-1937.64,0.00020821,2]
[321945128,1712645452623,-2079.54,0.00020821,2]
[321945129,1712645452632,-3993.6,0.00020821,2]
[321945130,1712645452642,-548.51,0.00020821,2]
[321945131,1712645452651,-500.0,0.00020821,2]
[321945132,1712645452661,-534.84,0.00020821,2]
[321945133,1712645452670,-1942.13,0.00020821,2]
[321945134,1712645452679,-495.88049898,0.00020821,2]
[321945135,1712645452689,-2198.83,0.00020821,2]
[321945136,1712645452698,-901.58,0.00020821,2]
[321945137,1712645452708,-500.0,0.00020821,2]
[321945138,1712645452717,-500.0,0.00020821,2]
[321945139,1712645452727,-4845.63,0.00020821,2]
[321945140,1712645452736,-500.0,0.00020821,2]
[321945141,1712645452745,-3855.9,0.00020821,2]
[321945142,1712645452755,-3782.25,0.00020821,2]
[321945143,1712645452764,-1421.87,0.00020821,2]
[321945144,1712645452774,-3733.21,0.00020821,2]
[321945145,1712645452783,-561.96,0.00020821,2]
[321945146,1712645452793,-30567.68,0.00020821,2]
[321945147,1712645452803,-503.29,0.00020821,2]
[321945148,1712645452813,-500.0,0.00020821,2]
[321945149,1712645452823,-500.0,0.00020821,2]
[321945150,1712645452832,-1635.62,0.00020821,2]
[321945151,1712645452841,-3070.88,0.00020821,2]
[321945152,1712645452853,-1041.06,0.00020821,2]
[321945153,1712645452863,-944.6,0.00020821,2]
[321945154,1712645452872,-169.92,0.00020821,2]
[321945155,1712645452882,-500.0,0.00020821,2]
[321945156,1712645452891,-500.0,0.00020821,2]
[321945157,1712645452901,-500.0,0.00020821,2]
[321945158,1712645452911,-500.0,0.00020821,2]
[321945159,1712645452920,-3279.6,0.00020821,2]
[321945160,1712645452930,-2319.17,0.00020821,2]
[321945161,1712645452940,-2387.96,0.00020821,2]
[321945162,1712645452949,-500.0,0.00020821,2]
[321945163,1712645452959,-4151.59,0.00020821,2]
[321945164,1712645452968,-500.0,0.00020821,2]
[321945165,1712645452978,-500.0,0.00020821,2]
[321945166,1712645452988,-3030.52,0.00020821,2]
[321945167,1712645452997,-765.42,0.00020821,2]
[321945168,1712645453007,-500.0,0.00020821,2]
[321945169,1712645453017,-500.0,0.00020821,2]
[321945170,1712645453026,-500.0,0.00020821,2]
[321945171,1712645453036,-500.0,0.00020821,2]
[321945172,1712645453045,-500.0,0.00020821,2]
[321945173,1712645453055,-1107.79,0.00020821,2]
[321945174,1712645453065,-500.0,0.00020821,2]
[321945175,1712645453074,-529.96508198,0.00020821,2]
[321945176,1712645453084,-500.0,0.00020821,2]
[321945177,1712645453094,-2434.74,0.00020821,2]
[321945178,1712645453104,-1736.21,0.00020821,2]
[321945179,1712645453114,-500.0,0.00020821,2]
[321945180,1712645453123,-5998.4,0.00020821,2]
[321945181,1712645453133,-8640.1294903,0.00020821,2]
[321945182,1712645453145,-327.29465067,0.00020821,2]
[321945183,1712645453166,-343.02585903,0.00020821,2]
[321945184,1712645453175,-856.97184108,0.00020821,2]
[321945185,1712645453187,-2481.61815892,0.00020821,2]
[321945186,1712645453197,-500.0,0.00020821,2]
[321945187,1712645453206,-651.35,0.00020821,2]
[321945188,1712645453216,-929.84,0.00020821,2]
[321945189,1712645453227,-500.0,0.00020821,2]
[321945190,1712645453238,-500.0,0.00020821,2]
[321945191,1712645453248,-5658.13,0.00020821,2]
[321945192,1712645453257,-500.0,0.00020821,2]
[321945193,1712645453267,-500.0,0.00020821,2]
[321945194,1712645453276,-1802.78,0.00020821,2]
[321945195,1712645453286,-500.0,0.00020821,2]
[321945196,1712645453297,-748.3,0.00020821,2]
[321945197,1712645453306,-971.77,0.00020821,2]
[321945198,1712645453317,-500.0,0.00020821,2]
[321945199,1712645453326,-500.0,0.00020821,2]
[321945200,1712645453337,-3824.87,0.00020821,2]
[321945201,1712645453348,-2430.57,0.00020821,2]
[321945202,1712645453359,-500.0,0.00020821,2]
[321945203,1712645453368,-500.0,0.00020821,2]
[321945204,1712645453378,-512.75244615,0.00020821,2]
[321945205,1712645453387,-500.0,0.00020821,2]
[321945206,1712645453397,-500.0,0.00020821,2]
[321945207,1712645453408,-510.54665968,0.00020821,2]
[321945208,1712645453418,-2737.47273525,0.00020821,2]
[321945209,1712645453455,-1047.17726475,0.00020821,2]
[321945210,1712645453466,-5089.43,0.00020821,2]
[321945211,1712645453479,-513.33,0.00020821,2]
[321945212,1712645453489,-300.39,0.00020834,2]
[321945213,1712645453500,-448.88,0.00020834,2]
[321945214,1712645453510,-205.95296556,0.00020834,2]
[321945215,1712645453523,-243.50703444,0.00020834,2]
[321945216,1712645453534,-709.81,0.00020834,2]
[321945217,1712645453545,-304.15,0.00020834,2]
[321945218,1712645453557,-153.44,0.00020834,2]
[321945219,1712645453568,-328.71,0.00020834,2]
[321945220,1712645453579,-847.47,0.00020834,2]
[321945221,1712645453589,-155.67,0.00020834,2]
[321945222,1712645453600,-1057.07,0.00020834,2]
[321945223,1712645453610,-150.0,0.00020834,2]
[321945224,1712645453619,-187.98,0.00020834,2]
[321945225,1712645453628,-150.0,0.00020834,2]
[321945226,1712645453637,-150.0,0.00020834,2]
[321945227,1712645453648,-150.0,0.00020834,2]
[321945228,1712645453658,-150.0,0.00020834,2]
[321945229,1712645453669,-150.0,0.00020834,2]
[321945230,1712645453679,-520.17,0.00020834,2]
[321945231,1712645453688,-301.41637139,0.00020834,2]
[321945232,1712645453699,-116.26362861,0.00020834,2]
[321945233,1712645453709,-300.0,0.00020834,2]
[321945234,1712645453720,-150.0,0.00020834,2]
[321945235,1712645453730,-150.0,0.00020834,2]
[321945236,1712645453741,-150.0,0.00020834,2]
[321945237,1712645453751,-150.0,0.00020834,2]
[321945238,1712645453762,-150.0,0.00020834,2]
[321945239,1712645453771,-417.68,0.00020834,2]
[321945240,1712645453781,-150.0,0.00020834,2]
[321945241,1712645453790,-150.0,0.00020834,2]
[321945242,1712645453799,-150.0,0.00020834,2]
[321945243,1712645453808,-150.0,0.00020834,2]
[321945244,1712645453817,-416.44,0.00020834,2]
[321945245,1712645453827,-150.0,0.00020834,2]
[321945246,1712645453837,-520.17,0.00020834,2]
[321945247,1712645453848,-307.16,0.00020834,2]
[321945248,1712645453857,-349.13,0.00020834,2]
[321945249,1712645453866,-1228.05543107,0.00020937,2]
[321945250,1712645453875,-1262.89677129,0.00020956,2]
[321945251,1712645453884,-174.56656824,0.00020995,2]
[321945252,1712645453894,-812.49007038,0.00020995,3]
[321945253,1712645453903,-293.01577488,0.00020995,2]
[321945254,1712645453913,-206.15621164,0.00020995,2]
[321945255,1712645453922,-185.38598836,0.00020995,2]
[321945256,1712645453932,-667.75474148,0.00020995,2]
[321945257,1712645453943,-2238.86626427,0.00021,2]
[321945258,1712645453952,-550.0,0.00021,3]
[321945259,1712645453961,-200.0,0.00021029,2]
[321945260,1712645453971,-442.0,0.00021039,2]
[321945261,1712645453980,-354.0,0.00021039,2]
[321945262,1712645453989,-214.0,0.00021039,2]
[321945263,1712645453998,-2788.33267932,0.00021045,2]
[321945264,1712645454007,-563.0,0.00021086,2]
[321945265,1712645454017,-752.9,0.00021094,2]
[321945266,1712645454026,-752.9,0.00021094,2]
[321945267,1712645454035,-752.9,0.00021094,2]
[321945268,1712645454045,-397.85642619,0.00021094,2]
[321945269,1712645454057,-355.04357381,0.00021094,2]
[321945270,1712645454066,-752.9,0.00021094,2]
[321945271,1712645454075,-752.9,0.00021094,2]
[321945272,1712645454085,-1672.45642619,0.00021094,2]
[321945273,1712645454098,-2731.65357381,0.00021094,2]
[321945274,1712645454107,-4404.11,0.00021094,2]
[321945275,1712645454116,-4404.11,0.00021094,2]
[321945276,1712645454126,-4404.11,0.00021094,2]
[321945277,1712645454135,-4404.11,0.00021094,2]
[321945278,1712645454145,-4404.11,0.00021094,2]
[321945279,1712645454154,-500.0,0.00021095,2]
[321945280,1712645454163,-500.0,0.00021095,2]
[321945281,1712645454173,-500.0,0.00021095,2]
[321945282,1712645454182,-500.0,0.00021095,2]
[321945283,1712645454192,-557.05208491,0.00021095,2]
[321945284,1712645454201,-267.58586059,0.00021095,2]
[321945285,1712645454211,-500.0,0.00021095,2]
[321945286,1712645454220,-548.57003993,0.00021095,2]